[Event "*** Titled Tuesday 3|2 Blitz"]
[Site "Chess.com"]
[Date "2015.08.04"]
[Round "9"]
[White "Haykos"]
[Black "proxy6"]
[Result "1-0"]
[WhiteElo "2172"]
[BlackElo "1906"]
[TimeControl "180+2"]
[EndTime "13:30:08 PDT"]
[Termination "Haykos won by resignation"]

1. e4 {[%clk 0:03:01.9]} 1... e5 {[%clk 0:02:56.6]} 2. Nf3 {[%clk 0:03:00.8]}
2... Nc6 {[%clk 0:02:55.9]} 3. Bc4 {[%clk 0:03:01.5]} 3... Bc5 {[%clk
0:02:55.1]} 4. d3 {[%clk 0:03:02.4]} 4... Nf6 {[%clk 0:02:48.1]} 5. O-O {[%clk
0:03:03.3]} 5... a6 {[%clk 0:02:45.6]} 6. c3 {[%clk 0:03:04.7]} 6... O-O {[%clk
0:02:45]} 7. Re1 {[%clk 0:03:00]} 7... Ba7 {[%clk 0:02:32.1]} 8. Bb3 {[%clk
0:02:48.5]} 8... d6 {[%clk 0:02:29.1]} 9. Nbd2 {[%clk 0:02:49.7]} 9... Kh8
{[%clk 0:02:17]} 10. Nf1 {[%clk 0:02:49.7]} 10... Ng4 {[%clk 0:02:17]} 11. Re2
{[%clk 0:02:50.2]} 11... f5 {[%clk 0:02:16.5]} 12. Bg5 {[%clk 0:02:45.7]} 12...
Qe8 {[%clk 0:02:13]} 13. h3 {[%clk 0:02:46.6]} 13... Nh6 {[%clk 0:02:04.9]} 14.
Bxh6 {[%clk 0:02:46.7]} 14... gxh6 {[%clk 0:02:06.8]} 15. exf5 {[%clk
0:02:48.1]} 15... Bxf5 {[%clk 0:02:06.1]} 16. Bd5 {[%clk 0:02:46.1]} 16... Rb8
{[%clk 0:01:49.1]} 17. Be4 {[%clk 0:02:44.1]} 17... Ne7 {[%clk 0:01:47.4]} 18.
Ng3 {[%clk 0:02:44]} 18... Bg6 {[%clk 0:01:42.9]} 19. Nh4 {[%clk 0:02:42.5]}
19... Qf7 {[%clk 0:01:31.5]} 20. Qd2 {[%clk 0:02:41.5]} 20... Qg7 {[%clk
0:01:28.1]} 21. Rf1 {[%clk 0:02:38.3]} 21... Rf7 {[%clk 0:01:26.3]} 22. Bxg6
{[%clk 0:02:13.1]} 22... hxg6 {[%clk 0:01:26.5]} 23. Kh2 {[%clk 0:02:11.3]}
23... g5 {[%clk 0:01:21.3]} 24. Nf3 {[%clk 0:02:12.1]} 24... Ng6 {[%clk
0:01:21.8]} 25. d4 {[%clk 0:02:11.8]} 25... Nf4 {[%clk 0:01:21.4]} 26. Ree1
{[%clk 0:02:01]} 26... exd4 {[%clk 0:01:14.9]} 27. Nxd4 {[%clk 0:02:01]} 27...
Rbf8 {[%clk 0:01:15.3]} 28. f3 {[%clk 0:01:58.3]} 28... Qg6 {[%clk 0:01:14.3]}
29. Qc2 {[%clk 0:01:57.3]} 29... Bxd4 {[%clk 0:01:00.1]} 30. Qxg6 {[%clk
0:01:57.3]} 30... Nxg6 {[%clk 0:01:02]} 31. cxd4 {[%clk 0:01:58.3]} 31... Nf4
{[%clk 0:00:59.1]} 32. Ne4 {[%clk 0:01:53.2]} 32... Nd3 {[%clk 0:00:54.8]} 33.
Re2 {[%clk 0:01:53.8]} 33... Rf5 {[%clk 0:00:50]} 34. Rd2 {[%clk 0:01:51]} 34...
Nf4 {[%clk 0:00:49.1]} 35. Rc1 {[%clk 0:01:51.7]} 35... R8f7 {[%clk 0:00:48.6]}
36. Rdc2 {[%clk 0:01:50.4]} 36... Nd5 {[%clk 0:00:47.1]} 37. Re1 {[%clk
0:01:37.2]} 37... Kg7 {[%clk 0:00:46.2]} 38. Ng3 {[%clk 0:01:34.2]} 38... Rf4
{[%clk 0:00:46.4]} 39. Nh5+ {[%clk 0:01:35.6]} 39... Kg6 {[%clk 0:00:45.8]} 40.
Nxf4+ {[%clk 0:01:37.5]} 40... Rxf4 {[%clk 0:00:47.3]} 41. Re4 {[%clk
0:01:37.3]} 41... Rf7 {[%clk 0:00:45.3]} 42. h4 {[%clk 0:01:35.8]} 42... Rd7
{[%clk 0:00:43.7]} 43. Kg3 {[%clk 0:01:33.6]} 43... Nf6 {[%clk 0:00:42.3]} 44.
Re6 {[%clk 0:01:32.1]} 44... Kf7 {[%clk 0:00:42.7]} 45. Rce2 {[%clk 0:01:32.5]}
45... Nh5+ {[%clk 0:00:41.3]} 46. Kg4 {[%clk 0:01:33.6]} 46... Nf4 {[%clk
0:00:42.1]} 47. R6e4 {[%clk 0:01:31.4]} 47... Nxe2 {[%clk 0:00:42.5]} 48. Rxe2
{[%clk 0:01:33.3]} 48... Kf6 {[%clk 0:00:42.6]} 49. hxg5+ {[%clk 0:01:34.2]}
49... hxg5 {[%clk 0:00:44.5]} 50. d5 {[%clk 0:01:34.4]} 50... c6 {[%clk
0:00:40.6]} 51. Re6+ {[%clk 0:01:35.1]} 51... Kf7 {[%clk 0:00:41.4]} 52. Rh6
{[%clk 0:01:30.1]} 52... Kg7 {[%clk 0:00:34.3]} 53. Rh5 {[%clk 0:01:31.1]} 53...
cxd5 {[%clk 0:00:32.3]} 54. Rxg5+ {[%clk 0:01:32.5]} 54... Kf6 {[%clk
0:00:33.5]} 55. Rxd5 {[%clk 0:01:34.2]} 55... Ke6 {[%clk 0:00:34.5]} 56. Rd2
{[%clk 0:01:34.5]} 56... d5 {[%clk 0:00:34.7]} 57. f4 {[%clk 0:01:34.8]} 57...
d4 {[%clk 0:00:34.3]} 58. Kf3 {[%clk 0:01:36]} 58... Kd5 {[%clk 0:00:30.6]} 59.
b3 {[%clk 0:01:33.5]} 59... Rc7 {[%clk 0:00:26.7]} 60. f5 {[%clk 0:01:07.4]}
60... Ke5 {[%clk 0:00:25.8]} 61. g4 {[%clk 0:01:07]} 61... Rc3+ {[%clk
0:00:25.8]} 62. Kf2 {[%clk 0:01:08.4]} 62... Rh3 {[%clk 0:00:19.6]} 63. Kg2
{[%clk 0:01:09]} 63... Rc3 {[%clk 0:00:19.2]} 64. Rf2 {[%clk 0:01:08]} 64... d3
{[%clk 0:00:19.4]} 65. f6 {[%clk 0:01:07.7]} 65... Rc8 {[%clk 0:00:18.6]} 66. f7
{[%clk 0:01:08.1]} 66... Rf8 {[%clk 0:00:18.9]} 67. g5 {[%clk 0:01:08.4]} 67...
d2 {[%clk 0:00:20.3]} 68. Rxd2 {[%clk 0:01:09]} 68... Rxf7 {[%clk 0:00:21.4]}
69. Kg3 {[%clk 0:01:10.1]} 69... Rg7 {[%clk 0:00:15.3]} 70. Kg4 {[%clk
0:01:11.2]} 70... Ke6 {[%clk 0:00:15.8]} 71. Re2+ {[%clk 0:01:09.2]} 71... Kf7
{[%clk 0:00:16.1]} 72. Kf5 {[%clk 0:01:10.5]} 72... Kg8 {[%clk 0:00:16.2]} 73.
Re8+ {[%clk 0:01:09.8]} 73... Kf7 {[%clk 0:00:15.2]} 74. Rb8 {[%clk 0:01:10]}
74... b5 {[%clk 0:00:11.5]} 75. g6+ {[%clk 0:01:11.1]} 75... Ke7 {[%clk
0:00:11.6]} 76. Rb7+ {[%clk 0:01:11.2]} 76... Kf8 {[%clk 0:00:13.1]} 77. Rxg7
{[%clk 0:01:12.1]} 77... Kxg7 {[%clk 0:00:15]} 78. b4 {[%clk 0:01:13.6]} 78...
Kg8 {[%clk 0:00:13.6]} 79. Kf6 {[%clk 0:01:14.4]} 79... Kf8 {[%clk 0:00:14.1]}
80. g7+ {[%clk 0:01:13.1]} 80... Kg8 {[%clk 0:00:15.3]} 81. a3 {[%clk
0:01:14.2]} 81... a5 {[%clk 0:00:15.5]} 82. bxa5 {[%clk 0:01:15.6]} 82... b4
{[%clk 0:00:16.8]} 83. axb4 {[%clk 0:01:17.1]} 83... Kh7 {[%clk 0:00:17.2]} 84.
Kf7 {[%clk 0:01:18.7]} 84... Kh6 {[%clk 0:00:17.4]} 85. g8=Q {[%clk 0:01:20.6]}
85... Kh5 {[%clk 0:00:18.8]} 86. a6 {[%clk 0:01:21.2]} 1-0

[Event "*** Titled Tuesday 3|2 Blitz"]
[Site "Chess.com"]
[Date "2015.08.04"]
[Round "9"]
[White "FairChess_on_YouTube"]
[Black "Genghis_K"]
[Result "1-0"]
[WhiteElo "2742"]
[BlackElo "2587"]
[TimeControl "180+2"]
[EndTime "13:30:46 PDT"]
[Termination "FairChess_on_YouTube won by resignation"]

1. d4 {[%clk 0:03:01.9]} 1... Nf6 {[%clk 0:02:55.8]} 2. Bg5 {[%clk 0:03:02.2]}
2... e6 {[%clk 0:02:55.7]} 3. Nf3 {[%clk 0:03:00.3]} 3... h6 {[%clk 0:02:56.7]}
4. Bh4 {[%clk 0:03:01]} 4... d6 {[%clk 0:02:57.9]} 5. Nbd2 {[%clk 0:02:59.9]}
5... g5 {[%clk 0:02:59.2]} 6. Bg3 {[%clk 0:03:00.6]} 6... Nh5 {[%clk 0:03:00.8]}
7. e3 {[%clk 0:03:00.2]} 7... Bg7 {[%clk 0:03:01.4]} 8. c3 {[%clk 0:02:59.6]}
8... Nd7 {[%clk 0:03:02.1]} 9. Bd3 {[%clk 0:03:00.2]} 9... Qe7 {[%clk
0:03:02.5]} 10. Nc4 {[%clk 0:02:54.7]} 10... b6 {[%clk 0:02:49]} 11. Nfd2 {[%clk
0:02:42.3]} 11... Nxg3 {[%clk 0:02:47.5]} 12. hxg3 {[%clk 0:02:43.9]} 12... Bb7
{[%clk 0:02:48.5]} 13. e4 {[%clk 0:02:44.5]} 13... c5 {[%clk 0:02:39.3]} 14. d5
{[%clk 0:02:42.6]} 14... O-O {[%clk 0:02:28.2]} 15. Ne3 {[%clk 0:02:38.7]} 15...
Nf6 {[%clk 0:02:09.1]} 16. Qe2 {[%clk 0:02:17.1]} 16... a6 {[%clk 0:02:09.1]}
17. f4 {[%clk 0:02:14.2]} 17... Rfe8 {[%clk 0:01:59.3]} 18. O-O-O {[%clk
0:02:11.4]} 18... Bc8 {[%clk 0:01:53]} 19. dxe6 {[%clk 0:01:49.9]} 19... Bxe6
{[%clk 0:01:53.7]} 20. e5 {[%clk 0:01:47.8]} 20... dxe5 {[%clk 0:01:51.6]} 21.
fxg5 {[%clk 0:01:48.5]} 21... hxg5 {[%clk 0:01:47.9]} 22. Ne4 {[%clk 0:01:49.2]}
22... Rad8 {[%clk 0:01:29.2]} 23. Rdf1 {[%clk 0:01:42.4]} 23... Nd5 {[%clk
0:01:01.5]} 24. Nf5 {[%clk 0:01:20.5]} 24... Bxf5 {[%clk 0:00:56.1]} 25. Rxf5
{[%clk 0:01:21.2]} 25... f6 {[%clk 0:00:57]} 26. Bc4 {[%clk 0:00:38.4]} 26... b5
{[%clk 0:00:55.4]} 27. Bxd5+ {[%clk 0:00:38.9]} 27... Rxd5 {[%clk 0:00:56.7]}
28. Qh5 {[%clk 0:00:39.6]} 28... Red8 {[%clk 0:00:35.1]} 29. Qg6 {[%clk
0:00:28.4]} 29... R8d6 {[%clk 0:00:12.9]} 30. Nxg5 {[%clk 0:00:26.9]} 30... Kf8
{[%clk 0:00:12.4]} 31. Nh7+ {[%clk 0:00:25]} 31... Kg8 {[%clk 0:00:13.8]} 32.
Rfh5 {[%clk 0:00:21.8]} 32... Qf7 {[%clk 0:00:14.5]} 33. Nxf6+ {[%clk
0:00:21.4]} 33... Kf8 {[%clk 0:00:16.1]} 34. Qxf7+ {[%clk 0:00:19.2]} 34... Kxf7
{[%clk 0:00:17.4]} 35. Nxd5 {[%clk 0:00:20.8]} 35... Rxd5 {[%clk 0:00:19.3]} 36.
Rf5+ {[%clk 0:00:21]} 36... Ke6 {[%clk 0:00:20.6]} 37. Rf2 {[%clk 0:00:18.2]}
37... Rd3 {[%clk 0:00:21.8]} 38. Rf3 {[%clk 0:00:18.5]} 38... Rd8 {[%clk
0:00:14.3]} 39. Kc2 {[%clk 0:00:18.7]} 39... Rg8 {[%clk 0:00:11.5]} 40. Rh5
{[%clk 0:00:15.4]} 40... Bf8 {[%clk 0:00:09.9]} 41. Kd3 {[%clk 0:00:15.9]} 41...
Be7 {[%clk 0:00:09.3]} 42. c4 {[%clk 0:00:14.4]} 42... bxc4+ {[%clk 0:00:08.3]}
43. Kxc4 {[%clk 0:00:15.2]} 43... Rg4+ {[%clk 0:00:09.8]} 44. Kc3 {[%clk
0:00:16.3]} 44... e4 {[%clk 0:00:10.4]} 45. Rh6+ {[%clk 0:00:15.7]} 45... Ke5
{[%clk 0:00:08.5]} 46. Rh5+ {[%clk 0:00:16.8]} 46... Ke6 {[%clk 0:00:09.5]} 47.
Re3 {[%clk 0:00:16.9]} 47... Bf6+ {[%clk 0:00:10.9]} 48. Kc4 {[%clk 0:00:17.6]}
48... Bd4 {[%clk 0:00:12]} 49. Re2 {[%clk 0:00:18.6]} 49... e3 {[%clk 0:00:13]}
50. Kd3 {[%clk 0:00:17.8]} 50... Rxg3 {[%clk 0:00:13.7]} 51. b4 {[%clk
0:00:18.6]} 51... Kd6 {[%clk 0:00:11.1]} 52. bxc5+ {[%clk 0:00:17]} 52... Bxc5
{[%clk 0:00:13]} 53. Rh6+ {[%clk 0:00:17.3]} 53... Kd5 {[%clk 0:00:14.1]} 54.
Rxa6 {[%clk 0:00:17.3]} 54... Rg4 {[%clk 0:00:14.4]} 55. Ra5 {[%clk 0:00:17.1]}
55... Rd4+ {[%clk 0:00:15.3]} 56. Kxe3 {[%clk 0:00:17.4]} 56... Ra4+ {[%clk
0:00:15.9]} 57. Rxc5+ {[%clk 0:00:18.4]} 57... Kxc5 {[%clk 0:00:17.8]} 58. Kf3
{[%clk 0:00:19.2]} 58... Ra3+ {[%clk 0:00:15.7]} 59. Kf4 {[%clk 0:00:19.3]}
59... Ra4+ {[%clk 0:00:13.6]} 60. Kf5 {[%clk 0:00:20.4]} 60... Ra8 {[%clk
0:00:14.6]} 61. g4 {[%clk 0:00:21.3]} 61... Rf8+ {[%clk 0:00:15.7]} 62. Kg6
{[%clk 0:00:21.2]} 62... Rg8+ {[%clk 0:00:17]} 63. Kf5 {[%clk 0:00:22.5]} 63...
Rf8+ {[%clk 0:00:18.6]} 64. Kg5 {[%clk 0:00:24]} 64... Rg8+ {[%clk 0:00:19.9]}
65. Kh4 {[%clk 0:00:25.5]} 65... Rh8+ {[%clk 0:00:21.3]} 66. Kg3 {[%clk
0:00:27.1]} 66... Rg8 {[%clk 0:00:22.9]} 67. Rd2 {[%clk 0:00:27.4]} 67... Kc4
{[%clk 0:00:21.3]} 68. Rd7 {[%clk 0:00:27]} 68... Kc5 {[%clk 0:00:20.3]} 69. Kf4
{[%clk 0:00:28.1]} 69... Kc6 {[%clk 0:00:21.2]} 70. Rf7 {[%clk 0:00:28.6]} 70...
Kd6 {[%clk 0:00:21.9]} 71. Kf5 {[%clk 0:00:28.6]} 71... Ra8 {[%clk 0:00:22.8]}
72. g5 {[%clk 0:00:29.8]} 72... Rxa2 {[%clk 0:00:23.9]} 73. Kg6 {[%clk
0:00:29.1]} 73... Ke6 {[%clk 0:00:24.2]} 74. Kg7 {[%clk 0:00:28.5]} 74... Rg2
{[%clk 0:00:22.7]} 75. g6 {[%clk 0:00:29.7]} 75... Rg1 {[%clk 0:00:22.2]} 76.
Rf2 {[%clk 0:00:29.9]} 76... Ke7 {[%clk 0:00:21]} 77. Re2+ {[%clk 0:00:30.7]}
77... Kd7 {[%clk 0:00:21.6]} 78. Kf7 {[%clk 0:00:31.2]} 78... Rf1+ {[%clk
0:00:23]} 79. Kg8 {[%clk 0:00:32.5]} 79... Rg1 {[%clk 0:00:24.5]} 80. g7 {[%clk
0:00:33]} 80... Rg3 {[%clk 0:00:25.5]} 81. Rh2 {[%clk 0:00:32.3]} 81... Ke7
{[%clk 0:00:23]} 82. Kh8 {[%clk 0:00:33.1]} 82... Kf7 {[%clk 0:00:24.3]} 83.
Rf2+ {[%clk 0:00:33.1]} 1-0